fUSD/lending_fUSD_20250720
["ID","MTS","AMOUNT","RATE_DAILY","PERIOD"]
[373475629,1753019457066,-480.0,0.00019287,2]
[373475631,1753019457075,-480.0,0.00019287,2]
[373475633,1753019457085,-480.0,0.00019287,2]
[373475635,1753019457095,-480.0,0.00019287,2]
[373475637,1753019457104,-480.0,0.00019287,2]
[373475639,1753019457114,-480.0,0.00019287,2]
[373475641,1753019457124,-480.0,0.00019287,2]
[373475643,1753019457134,-480.0,0.00019287,2]
[373475646,1753019457146,-480.0,0.00019287,2]
[373475648,1753019457156,-480.0,0.00019287,2]
[373475649,1753019457166,-480.0,0.00019287,2]
[373475652,1753019457176,-480.0,0.00019287,2]
[373475654,1753019457185,-480.0,0.00019287,2]
[373475656,1753019457195,-480.0,0.00019287,2]
[373475658,1753019457204,-738.41,0.00019287,2]
[373475660,1753019457214,-689.85,0.00019287,2]
[373475662,1753019457223,-480.0,0.00019287,2]
[373475664,1753019457233,-480.0,0.00019287,2]
[373475666,1753019457243,-480.0,0.00019287,2]
[373475668,1753019457253,-480.0,0.00019287,2]
[373475670,1753019457263,-480.0,0.00019287,2]
[373475672,1753019457273,-480.0,0.00019287,2]
[373475674,1753019457283,-1143.0,0.00019287,2]
[373475676,1753019457294,-480.0,0.00019287,2]
[373475678,1753019457303,-668.36,0.00019287,2]
[373475680,1753019457313,-480.0,0.00019287,2]
[373475682,1753019457323,-480.0,0.00019287,2]
[373475684,1753019457333,-932.37,0.00019287,2]
[373475686,1753019457343,-2985.1,0.00019287,2]
[373475688,1753019457353,-480.0,0.00019287,2]
[373475690,1753019457362,-480.0,0.00019287,2]
[373475692,1753019457372,-480.0,0.00019287,2]
[373475694,1753019457382,-480.0,0.00019287,2]
[373475696,1753019457395,-480.0,0.00019287,2]
[373475698,1753019457404,-480.0,0.00019287,2]
[373475699,1753019457414,-480.0,0.00019287,2]
[373475700,1753019457423,-939.17,0.00019287,2]
[373475701,1753019457435,-480.0,0.00019287,2]
[373475702,1753019457448,-1924.75,0.00019287,2]
[373475703,1753019457457,-480.0,0.00019287,2]
[373475704,1753019457467,-300.0,0.00019287,2]
[373475705,1753019457476,-480.0,0.00019287,2]
[373475706,1753019457486,-480.0,0.00019287,2]
[373475708,1753019457496,-527.35,0.00019287,2]
[373475710,1753019457505,-395.46994161,0.00019287,2]
[373475711,1753019457516,-601.3,0.00019287,2]
[373475713,1753019457527,-480.0,0.00019287,2]
[373475715,1753019457537,-480.0,0.00019287,2]
[373475717,1753019457547,-3502.66,0.00019287,2]
[373475719,1753019457556,-1898.09,0.00019287,2]
[373475721,1753019457566,-480.0,0.00019287,2]
[373475723,1753019457575,-480.0,0.00019287,2]
[373475725,1753019457585,-1159.856952,0.00019287,2]
[373475727,1753019457594,-480.0,0.00019287,2]
[373475729,1753019457605,-480.0,0.00019287,2]
[373475732,1753019457614,-480.0,0.00019287,2]
[373475734,1753019457624,-480.0,0.00019287,2]
[373475736,1753019457635,-415.640667,0.00019287,2]
[373475738,1753019457647,-986.11,0.00019287,2]
[373475740,1753019457656,-1159.856952,0.00019287,2]
[373475742,1753019457666,-480.0,0.00019287,2]
[373475744,1753019457675,-480.0,0.00019287,2]
[373475746,1753019457685,-480.0,0.00019287,2]
[373475748,1753019457695,-480.0,0.00019287,2]
[373475750,1753019457704,-1553.54,0.00019287,2]
[373475752,1753019457715,-480.0,0.00019287,2]
[373475754,1753019457725,-480.0,0.00019287,2]
[373475756,1753019457735,-480.0,0.00019287,2]
[373475758,1753019457745,-480.0,0.00019287,2]
[373475760,1753019457755,-480.0,0.00019287,2]
[373475762,1753019457765,-1483.86,0.00019287,2]
[373475764,1753019457774,-1070.15,0.00019287,2]
[373475766,1753019457784,-480.0,0.00019287,2]
[373475768,1753019457794,-415.640667,0.00019287,2]
[373475770,1753019457804,-480.0,0.00019287,2]
[373475772,1753019457814,-480.0,0.00019287,2]
[373475774,1753019457824,-480.0,0.00019287,2]
[373475776,1753019457834,-480.0,0.00019287,2]
[373475778,1753019457843,-532.55,0.00019287,2]
[373475780,1753019457853,-1553.37,0.00019287,2]
[373475782,1753019457862,-260.964108,0.00019287,2]
[373475784,1753019457872,-480.0,0.00019287,2]
[373475786,1753019457882,-480.0,0.00019287,2]
[373475788,1753019457892,-480.0,0.00019287,2]
[373475790,1753019457902,-480.0,0.00019287,2]
[373475792,1753019457912,-480.0,0.00019287,2]
[373475794,1753019457921,-480.0,0.00019287,2]
[373475796,1753019457931,-480.0,0.00019287,2]
[373475798,1753019457940,-480.0,0.00019287,2]
[373475801,1753019457950,-260.964108,0.00019287,2]
[373475803,1753019457959,-480.0,0.00019287,2]
[373475805,1753019457969,-480.0,0.00019287,2]
[373475807,1753019457978,-480.0,0.00019287,2]
[373475809,1753019457988,-480.0,0.00019287,2]
[373475811,1753019457997,-480.0,0.00019287,2]
[373475813,1753019458006,-480.0,0.00019287,2]
[373475815,1753019458016,-480.0,0.00019287,2]
[373475817,1753019458025,-480.0,0.00019287,2]
[373475819,1753019458035,-480.0,0.00019287,2]
[373475821,1753019458044,-480.0,0.00019287,2]
[373475823,1753019458053,-480.0,0.00019287,2]
[373475825,1753019458062,-151.0,0.00019287,2]
[373475827,1753019458072,-1194.6,0.00019287,2]
[373475829,1753019458081,-168.75068133,0.00019287,2]
[373475831,1753019458090,-828.22,0.00019287,2]
[373475833,1753019458101,-480.0,0.00019287,2]
[373475835,1753019458111,-1794.49,0.00019287,2]
[373475837,1753019458122,-480.0,0.00019287,2]
[373475839,1753019458131,-480.0,0.00019287,2]
[373475841,1753019458141,-477.31916035,0.00019287,2]
[373475843,1753019458151,-151.0,0.00019287,2]
[373475845,1753019458161,-1041.33,0.00019287,2]
[373475847,1753019458171,-1596.73,0.00019287,2]
[373475849,1753019458180,-480.0,0.00019287,2]
[373475851,1753019458190,-480.0,0.00019287,2]
[373475853,1753019458199,-480.0,0.00019287,2]
[373475855,1753019458209,-480.0,0.00019287,2]
[373475857,1753019458218,-4638.84,0.00019287,2]
[373475859,1753019458228,-480.0,0.00019287,2]
[373475861,1753019458237,-480.0,0.00019287,2]
[373475863,1753019458247,-630.93,0.00019287,2]
[373475865,1753019458256,-480.0,0.00019287,2]
[373475867,1753019458266,-480.0,0.00019287,2]
[373475869,1753019458276,-480.0,0.00019287,2]
[373475871,1753019458285,-480.0,0.00019287,2]
[373475873,1753019458296,-480.0,0.00019287,2]
[373475875,1753019458305,-480.0,0.00019287,2]
[373475877,1753019458316,-1777.66,0.00019287,2]
[373475879,1753019458325,-480.0,0.00019287,2]
[373475881,1753019458335,-151.0,0.00019287,2]
[373475883,1753019458344,-556.83,0.00019287,2]
[373475885,1753019458354,-1897.84,0.00019287,2]
[373475887,1753019458363,-1256.18,0.00019287,2]
[373475889,1753019458373,-2882.58,0.00019287,2]
[373475892,1753019458382,-380.0,0.00019287,2]
[373475894,1753019458393,-480.0,0.00019287,2]
[373475895,1753019458402,-979.84,0.00019287,2]
[373475898,1753019458412,-480.0,0.00019287,2]
[373475900,1753019458421,-480.0,0.00019287,2]
[373475902,1753019458432,-480.0,0.00019287,2]
[373475903,1753019458447,-480.0,0.00019287,2]
[373475905,1753019458458,-480.0,0.00019287,2]
[373475908,1753019458468,-480.0,0.00019287,2]
[373475910,1753019458478,-707.99,0.00019287,2]
[373475912,1753019458487,-574.55,0.00019287,2]
[373475914,1753019458497,-38134.22,0.00019287,2]
[373475916,1753019458506,-480.0,0.00019287,2]
[373475918,1753019458516,-1106.08,0.00019287,2]
[373475920,1753019458527,-151.0,0.00019287,2]
[373475921,1753019458543,-480.0,0.00019287,2]
[373475958,1753019458866,-480.0,0.00019287,2]
[373475960,1753019458878,-480.0,0.00019287,2]
[373475962,1753019458888,-480.0,0.00019287,2]
[373475964,1753019458897,-480.0,0.00019287,2]
[373475966,1753019458907,-480.0,0.00019287,2]
[373475969,1753019458920,-374.20189567,0.00019287,2]
[373475970,1753019458930,-480.0,0.00019287,2]
[373475973,1753019458940,-480.0,0.00019287,2]
[373475975,1753019458950,-480.0,0.00019287,2]
[373475977,1753019458960,-480.0,0.00019287,2]
[373475979,1753019458970,-2593.99,0.00019287,2]
[373475981,1753019458980,-480.0,0.00019287,2]
[373475983,1753019458989,-773.09,0.00019287,2]
[373475985,1753019459000,-480.0,0.00019287,2]
[373475987,1753019459010,-3225.28,0.00019287,2]
[373475989,1753019459020,-480.0,0.00019287,2]
[373475991,1753019459030,-10449.6,0.00019287,2]
[373475993,1753019459039,-151.0,0.00019287,2]
[373475995,1753019459049,-480.0,0.00019287,2]
[373475997,1753019459059,-480.0,0.00019287,2]
[373475999,1753019459069,-2698.38,0.00019287,2]
[373476001,1753019459078,-480.0,0.00019287,2]
[373476003,1753019459088,-3171.67,0.00019287,2]
[373476005,1753019459098,-480.0,0.00019287,2]
[373476008,1753019459108,-480.0,0.00019287,2]
[373476010,1753019459118,-1260.52,0.00019287,2]
[373476012,1753019459128,-458.78880954,0.00019287,2]
[373476014,1753019459138,-480.0,0.00019287,2]
[373476016,1753019459147,-480.0,0.00019287,2]
[373476018,1753019459157,-443.38722797,0.00019287,2]
[373476020,1753019459167,-480.0,0.00019287,2]
[373476022,1753019459177,-480.0,0.00019287,2]
[373476024,1753019459191,-480.0,0.00019287,2]
[373476026,1753019459201,-2207.57,0.00019287,2]
[373476028,1753019459212,-480.0,0.00019287,2]
[373476030,1753019459221,-480.0,0.00019287,2]
[373476031,1753019459231,-480.0,0.00019287,2]
[373476032,1753019459241,-480.0,0.00019287,2]
[373476033,1753019459251,-480.0,0.00019287,2]
[373476034,1753019459261,-480.0,0.00019287,2]
[373476035,1753019459271,-1908.42,0.00019287,2]
[373476036,1753019459281,-480.0,0.00019287,2]
[373476037,1753019459291,-480.0,0.00019287,2]
[373476038,1753019459301,-480.0,0.00019287,2]
[373476041,1753019459312,-4837.24,0.00019287,2]
[373476043,1753019459324,-480.0,0.00019287,2]
[373476045,1753019459333,-480.0,0.00019287,2]
[373476047,1753019459343,-480.0,0.00019287,2]
[373476049,1753019459352,-480.0,0.00019287,2]
[373476051,1753019459362,-480.0,0.00019287,2]
[373476053,1753019459372,-480.0,0.00019287,2]
[373476055,1753019459382,-480.0,0.00019287,2]
[373476057,1753019459392,-480.0,0.00019287,2]
[373476059,1753019459402,-211.55834028,0.00019287,2]
[373476061,1753019459412,-480.0,0.00019287,2]
[373476063,1753019459421,-480.0,0.00019287,2]
[373476065,1753019459431,-3925.2,0.00019287,2]
[373476067,1753019459444,-480.0,0.00019287,2]
[373476069,1753019459455,-480.0,0.00019287,2]
[373476071,1753019459464,-1106.38,0.00019287,2]
[373476073,1753019459475,-480.0,0.00019287,2]
[373476075,1753019459484,-480.0,0.00019287,2]
[373476077,1753019459494,-480.0,0.00019287,2]
[373476079,1753019459504,-1549.05,0.00019287,2]
[373476081,1753019459514,-480.0,0.00019287,2]
[373476083,1753019459525,-675.33,0.00019287,2]
[373476085,1753019459535,-1337.84,0.00019287,2]
[373476087,1753019459545,-480.0,0.00019287,2]
[373476089,1753019459555,-920.58,0.00019287,2]
[373476091,1753019459565,-480.0,0.00019287,2]
[373476094,1753019459575,-480.0,0.00019287,2]
[373476096,1753019459585,-4186.58,0.00019287,2]
[373476098,1753019459594,-151.0,0.00019287,2]
[373476100,1753019459604,-480.0,0.00019287,2]
[373476102,1753019459614,-480.0,0.00019287,2]
[373476104,1753019459623,-379.38198242,0.00019287,2]
[373476106,1753019459632,-575.28,0.00019287,2]
[373476108,1753019459643,-480.0,0.00019287,2]
[373476110,1753019459652,-480.0,0.00019287,2]
[373476112,1753019459662,-480.0,0.00019287,2]
[373476114,1753019459672,-480.0,0.00019287,2]
[373476116,1753019459682,-2912.14,0.00019287,2]
[373476118,1753019459691,-480.0,0.00019287,2]
[373476120,1753019459701,-613.17314469,0.00019287,2]
[373476122,1753019459711,-480.0,0.00019287,2]
[373476124,1753019459720,-378.87142362,0.00019287,2]
[373476126,1753019459730,-480.0,0.00019287,2]
[373476128,1753019459740,-480.0,0.00019287,2]
[373476130,1753019459750,-480.0,0.00019287,2]
[373476132,1753019459760,-151.0,0.00019287,2]
[373476134,1753019459770,-1601.32,0.00019287,2]
[373476136,1753019459780,-480.0,0.00019287,2]
[373476138,1753019459790,-480.0,0.00019287,2]
[373476141,1753019459804,-1575.77,0.00019287,2]
[373476143,1753019459813,-1649.03,0.00019287,2]
[373476145,1753019459823,-501.28,0.00019287,2]
[373476147,1753019459832,-480.0,0.00019287,2]
[373476149,1753019459842,-480.0,0.00019287,2]
[373476151,1753019459852,-151.0,0.00019287,2]
[373476153,1753019459861,-480.0,0.00019287,2]
[373476155,1753019459871,-480.0,0.00019287,2]
[373476157,1753019459881,-480.0,0.00019287,2]
[373476159,1753019459891,-480.0,0.00019287,2]
[373476161,1753019459900,-16754.36,0.00019287,2]
[373476163,1753019459911,-480.0,0.00019287,2]
[373476165,1753019459922,-1937.56,0.00019287,2]
[373476167,1753019459932,-480.0,0.00019287,2]
[373476169,1753019459942,-480.0,0.00019287,2]
[373476171,1753019459951,-1894.53,0.00019287,2]
[373476173,1753019459961,-480.0,0.00019287,2]
[373476175,1753019459970,-480.0,0.00019287,2]
[373476177,1753019459980,-480.0,0.00019287,2]
[373476179,1753019459990,-480.0,0.00019287,2]
[373476181,1753019460000,-597.32,0.00019287,2]
[373476183,1753019460009,-480.0,0.00019287,2]
[373476185,1753019460020,-480.0,0.00019287,2]
[373476187,1753019460030,-395.84182433,0.00019287,2]
[373476189,1753019460040,-480.0,0.00019287,2]
[373476191,1753019460050,-480.0,0.00019287,2]
[373476193,1753019460060,-480.0,0.00019287,2]
[373476195,1753019460070,-673.9,0.00019287,2]
[373476197,1753019460079,-480.0,0.00019287,2]
[373476199,1753019460089,-480.0,0.00019287,2]
[373476201,1753019460099,-480.0,0.00019287,2]
[373476203,1753019460108,-480.0,0.00019287,2]
[373476205,1753019460117,-1980.55,0.00019287,2]
[373476207,1753019460127,-480.0,0.00019287,2]
[373476209,1753019460137,-155.332569,0.00019287,2]
[373476211,1753019460147,-1244.68,0.00019287,2]
[373476213,1753019460157,-480.0,0.00019287,2]
[373476215,1753019460167,-480.0,0.00019287,2]
[373476217,1753019460176,-480.0,0.00019287,2]
[373476219,1753019460187,-480.0,0.00019287,2]
[373476221,1753019460196,-420.0,0.00019287,2]
[373476223,1753019460207,-480.0,0.00019287,2]
[373476225,1753019460217,-503.88,0.00019287,2]
[373476227,1753019460227,-151.0,0.00019287,2]
[373476229,1753019460237,-480.0,0.00019287,2]
[373476231,1753019460247,-480.0,0.00019287,2]
[373476233,1753019460257,-480.0,0.00019287,2]
[373476236,1753019460267,-480.0,0.00019287,2]
[373476238,1753019460276,-480.0,0.00019287,2]
[373476240,1753019460286,-480.0,0.00019287,2]
[373476242,1753019460295,-480.0,0.00019287,2]
[373476244,1753019460305,-1245.96,0.00019287,2]
[373476246,1753019460315,-871.27,0.00019287,2]
[373476248,1753019460325,-7394.507718,0.00019287,2]
[373476250,1753019460335,-6803.71,0.00019287,2]
[373476252,1753019460345,-480.0,0.00019287,2]
[373476254,1753019460354,-480.0,0.00019287,2]
[373476256,1753019460364,-7666.050453,0.00019287,2]
[373476258,1753019460373,-480.0,0.00019287,2]
[373476260,1753019460383,-1360.71,0.00019287,2]
[373476262,1753019460393,-1112.24,0.00019287,2]
[373476264,1753019460403,-480.0,0.00019287,2]
[373476266,1753019460412,-480.0,0.00019287,2]
[373476268,1753019460422,-579.47,0.00019287,2]
[373476270,1753019460432,-2360.18,0.00019287,2]
[373476272,1753019460444,-480.0,0.00019287,2]
[373476274,1753019460454,-709.9,0.00019287,2]
[373476276,1753019460463,-1144.57,0.00019287,2]
[373476278,1753019460473,-3060.53,0.00019287,2]
[373476280,1753019460483,-480.0,0.00019287,2]
[373476282,1753019460492,-957.17,0.00019287,2]
[373476284,1753019460502,-480.0,0.00019287,2]
[373476286,1753019460511,-480.0,0.00019287,2]
[373476288,1753019460523,-397.72,0.00019287,2]
[373476290,1753019460534,-1099.37,0.00019287,2]
[373476292,1753019460543,-420.0,0.00019287,2]
[373476294,1753019460552,-480.0,0.00019287,2]
[373476296,1753019460562,-1014.42,0.00019287,2]
[373476298,1753019460571,-1194.62,0.00019287,2]
[373476300,1753019460581,-666.51,0.00019287,2]
[373476302,1753019460590,-480.0,0.00019287,2]
[373476304,1753019460599,-1224.46,0.00019287,2]
[373476306,1753019460608,-480.0,0.00019287,2]
[373476308,1753019460618,-622.5,0.00019287,2]
[373476310,1753019460627,-480.0,0.00019287,2]
[373476312,1753019460636,-3588.19,0.00019287,2]
[373476314,1753019460646,-480.0,0.00019287,2]
[373476316,1753019460656,-7028.034664,0.00019287,2]
[373476318,1753019460666,-480.0,0.00019287,2]
[373476320,1753019460675,-4161.68,0.00019287,2]
[373476322,1753019460685,-480.0,0.00019287,2]
[373476324,1753019460694,-480.0,0.00019287,2]
[373476326,1753019460704,-1009.8,0.00019287,2]
[373476328,1753019460713,-480.0,0.00019287,2]
[373476330,1753019460723,-480.0,0.00019287,2]
[373476332,1753019460732,-480.0,0.00019287,2]
[373476334,1753019460743,-5042.4,0.00019287,2]
[373476336,1753019460752,-759.09,0.00019287,2]
[373476338,1753019460761,-480.0,0.00019287,2]
[373476340,1753019460771,-480.0,0.00019287,2]
[373476342,1753019460780,-480.0,0.00019287,2]
[373476344,1753019460790,-480.0,0.00019287,2]
[373476346,1753019460799,-985.56034,0.00019287,2]
[373476348,1753019460809,-480.0,0.00019287,2]
[373476350,1753019460818,-480.0,0.00019287,2]
[373476352,1753019460828,-1765.61,0.00019287,2]
[373476354,1753019460838,-480.0,0.00019287,2]
[373476356,1753019460847,-892.48,0.00019287,2]
[373476358,1753019460857,-2738.0,0.00019287,2]
[373476360,1753019460867,-447.681769,0.00019287,2]
[373476362,1753019460876,-480.0,0.00019287,2]
[373476364,1753019460885,-480.0,0.00019287,2]
[373476366,1753019460896,-985.56034,0.00019287,2]
[373476368,1753019460905,-480.0,0.00019287,2]
[373476370,1753019460915,-2154.18,0.00019287,2]
[373476371,1753019460925,-480.0,0.00019287,2]
[373476372,1753019460935,-480.0,0.00019287,2]
[373476373,1753019460944,-3701.58,0.00019287,2]
[373476374,1753019460954,-563.37,0.00019287,2]
[373476375,1753019460964,-1224.02,0.00019287,2]
[373476376,1753019460974,-480.0,0.00019287,2]
[373476377,1753019460983,-480.0,0.00019287,2]
[373476378,1753019460994,-447.681769,0.00019287,2]
[373476380,1753019461004,-480.0,0.00019287,2]
[373476382,1753019461013,-1317.6,0.00019287,2]
[373476384,1753019461023,-1417.35,0.00019287,2]
[373476386,1753019461032,-345.36,0.00019287,2]
[373476388,1753019461042,-151.0,0.00019287,2]
[373476390,1753019461051,-2516.48,0.00019287,2]
[373476392,1753019461060,-494.3,0.00019287,2]
[373476395,1753019461070,-1918.3,0.00019287,2]
[373476397,1753019461083,-480.0,0.00019287,2]
[373476399,1753019461092,-1280.96,0.00019287,2]
[373476401,1753019461102,-480.0,0.00019287,2]
[373476403,1753019461111,-329.3526759,0.00019287,2]
[373476405,1753019461120,-2675.44,0.00019287,2]
[373476407,1753019461130,-1639.88,0.00019287,2]
[373476409,1753019461140,-480.0,0.00019287,2]
[373476411,1753019461150,-1234.43,0.00019287,2]
[373476413,1753019461160,-480.0,0.00019287,2]
[373476415,1753019461170,-480.0,0.00019287,2]
[373476417,1753019461179,-480.0,0.00019287,2]
[373476419,1753019461190,-480.0,0.00019287,2]
[373476421,1753019461200,-480.0,0.00019287,2]
[373476423,1753019461209,-151.0,0.00019287,2]
[373476425,1753019461219,-480.0,0.00019287,2]
[373476427,1753019461229,-2371.21,0.00019287,2]
[373476429,1753019461239,-151.0,0.00019287,2]
[373476431,1753019461248,-480.0,0.00019287,2]
[373476446,1753019461374,-1781.89,0.00019287,2]
[373476448,1753019461384,-480.0,0.00019287,2]
[373476450,1753019461395,-4290.9,0.00019287,2]
[373476452,1753019461405,-480.0,0.00019287,2]
[373476454,1753019461415,-673.12,0.00019287,2]
[373476456,1753019461424,-2112.39,0.00019287,2]
[373476458,1753019461433,-480.0,0.00019287,2]
[373476460,1753019461448,-480.0,0.00019287,2]
[373476462,1753019461458,-578.43,0.00019287,2]
[373476464,1753019461467,-509.06,0.00019287,2]
[373476466,1753019461476,-480.0,0.00019287,2]
[373476468,1753019461488,-218.8225786,0.00019287,2]
[373476470,1753019461497,-686.73,0.00019287,2]
[373476472,1753019461506,-1034.48,0.00019287,2]
[373476474,1753019461517,-1841.2,0.00019287,2]
[373476476,1753019461527,-151.0,0.00019287,2]
[373476478,1753019461535,-810.97,0.00019287,2]
[373476479,1753019461544,-480.0,0.00019287,2]
[373476481,1753019461554,-468.41304126,0.00019287,2]
[373476483,1753019461562,-2302.39,0.00019287,2]
[373476485,1753019461572,-480.0,0.00019287,2]
[373476487,1753019461581,-480.0,0.00019287,2]
[373476489,1753019461591,-1656.2,0.00019287,2]
[373476491,1753019461601,-480.0,0.00019287,2]
[373476493,1753019461610,-480.0,0.00019287,2]
[373476495,1753019461620,-480.0,0.00019287,2]
[373476497,1753019461629,-460.0,0.00019287,2]
[373476499,1753019461638,-1830.19,0.00019287,2]
[373476501,1753019461648,-1875.92,0.00019287,2]
[373476503,1753019461657,-480.0,0.00019287,2]
[373476505,1753019461666,-510.33,0.00019287,2]
[373476507,1753019461675,-1530.02,0.00019287,2]
[373476509,1753019461685,-480.0,0.00019287,2]
[373476511,1753019461694,-480.0,0.00019287,2]
[373476513,1753019461703,-4600.51,0.00019287,2]
[373476515,1753019461712,-480.0,0.00019287,2]
[373476517,1753019461722,-1122.81,0.00019287,2]
[373476519,1753019461732,-678.36,0.00019287,2]
[373476521,1753019461741,-480.0,0.00019287,2]
[373476523,1753019461750,-755.77,0.00019287,2]
[373476525,1753019461759,-480.0,0.00019287,2]
[373476527,1753019461768,-3405.09,0.00019287,2]
[373476529,1753019461778,-1854.23,0.00019287,2]
[373476531,1753019461788,-929.12,0.00019287,2]
[373476533,1753019461797,-480.0,0.00019287,2]
[373476535,1753019461806,-288.27176009,0.00019287,2]
[373476537,1753019461815,-480.0,0.00019287,2]
[373476539,1753019461825,-1480.72155,0.000193,2]
[373476541,1753019461834,-172.26,0.00019318,2]
[373476543,1753019461844,-172.26,0.00019318,2]
[373476545,1753019461853,-412.36107912,0.00019327,2]
[373476547,1753019461862,-438.41449106,0.00019355,2]
[373476549,1753019461871,-500.0,0.00019373,2]
[373476551,1753019461880,-500.0,0.00019373,2]
[373476553,1753019461889,-500.0,0.00019373,2]
[373476555,1753019461899,-500.0,0.00019373,2]
[373476557,1753019461908,-500.0,0.00019373,2]
[373476559,1753019461917,-500.0,0.00019373,2]
[373476561,1753019461926,-450.97809846,0.00019373,2]
[373476563,1753019461935,-500.0,0.00019395,2]
[373476565,1753019461944,-500.0,0.00019395,2]
[373476567,1753019461954,-500.0,0.00019395,2]
[373476569,1753019461963,-500.0,0.00019395,2]
[373476570,1753019461973,-480.0,0.00019396,2]
[373476572,1753019461982,-480.0,0.00019396,2]
[373476574,1753019461991,-480.0,0.00019396,2]
[373476576,1753019462000,-404.67,0.00019396,2]
[373476578,1753019462009,-480.0,0.00019396,2]
[373476580,1753019462018,-480.0,0.00019396,2]
[373476582,1753019462027,-480.0,0.00019396,2]
[373476584,1753019462036,-480.0,0.00019396,2]
[373476586,1753019462046,-480.0,0.00019396,2]
[373476588,1753019462055,-480.0,0.00019396,2]
[373476590,1753019462064,-480.0,0.00019396,2]
[373476592,1753019462073,-480.0,0.00019396,2]
[373476594,1753019462083,-480.0,0.00019396,2]
[373476596,1753019462093,-2168.69,0.00019396,2]
[373476598,1753019462102,-1171.8,0.00019396,2]
[373476600,1753019462112,-3702.53,0.00019396,2]
[373476602,1753019462121,-480.0,0.00019396,2]
[373476604,1753019462130,-500.0,0.00019396,2]
[373476606,1753019462140,-1608.55,0.00019396,2]
[373476608,1753019462150,-1394.43,0.00019396,2]
[373476610,1753019462159,-4486.95,0.00019396,2]
[373476612,1753019462168,-1957.62,0.00019396,2]
[373476614,1753019462177,-357.48490266,0.00019396,2]
[373476616,1753019462187,-1000.0,0.00019396,2]
[373476618,1753019462196,-947.48,0.00019396,2]
[373476620,1753019462205,-2119.05,0.00019396,2]
[373476622,1753019462214,-1974.09,0.00019396,2]
[373476624,1753019462224,-554.26,0.00019396,2]
[373476626,1753019462233,-500.0,0.00019396,2]
[373476628,1753019462242,-500.0,0.00019396,2]
[373476630,1753019462251,-4784.89,0.00019396,2]
[373476632,1753019462260,-1106.14,0.00019396,2]
[373476634,1753019462270,-1264.87,0.00019396,2]
[373476636,1753019462279,-2621.63,0.00019396,2]
[373476638,1753019462290,-480.0,0.00019397,2]
[373476640,1753019462299,-557.28,0.00019397,2]
[373476642,1753019462309,-480.0,0.00019397,2]
[373476644,1753019462318,-480.0,0.00019397,2]
[373476646,1753019462327,-480.0,0.00019397,2]
[373476648,1753019462337,-480.0,0.00019397,2]
[373476650,1753019462347,-480.0,0.00019397,2]
[373476652,1753019462356,-480.0,0.00019397,2]
[373476654,1753019462365,-480.0,0.00019397,2]
[373476656,1753019462374,-480.0,0.00019397,2]
[373476658,1753019462383,-480.0,0.00019397,2]